[Event "Early-Titled-Tuesday-Blitz-May-07-2024"]
[Site "Chess.com"]
[Date "2024.05.07"]
[Round "2"]
[White "Kushch_Nikolai"]
[Black "FontVella8"]
[Result "0-1"]
[WhiteElo "2407"]
[BlackElo "2687"]
[TimeControl "180+1"]
[EndTime "8:21:22 PDT"]
[Termination "FontVella8 won on time"]

1. Nf3 {[%clk 0:03:00.9]} 1... g6 {[%clk 0:02:59.6]} 2. e4 {[%clk 0:02:58.9]}
2... Bg7 {[%clk 0:02:59.7]} 3. d4 {[%clk 0:02:58.9]} 3... c6 {[%clk 0:02:59.5]}
4. Nc3 {[%clk 0:02:54.6]} 4... d5 {[%clk 0:02:59.4]} 5. h3 {[%clk 0:02:54.1]}
5... dxe4 {[%clk 0:02:59.3]} 6. Nxe4 {[%clk 0:02:53.7]} 6... Nf6 {[%clk
0:02:59.8]} 7. Nxf6+ {[%clk 0:02:51.5]} 7... exf6 {[%clk 0:03:00.7]} 8. Bd3
{[%clk 0:02:48.8]} 8... O-O {[%clk 0:03:01]} 9. O-O {[%clk 0:02:48.5]} 9... Qd6
{[%clk 0:02:58.4]} 10. c3 {[%clk 0:02:44.3]} 10... a5 {[%clk 0:02:57.9]} 11. Be3
{[%clk 0:02:42.2]} 11... Na6 {[%clk 0:02:58]} 12. Qd2 {[%clk 0:02:41.5]} 12...
Be6 {[%clk 0:02:56.7]} 13. Bf4 {[%clk 0:02:36.6]} 13... Qd7 {[%clk 0:02:56.5]}
14. Rfe1 {[%clk 0:02:33.3]} 14... Nc7 {[%clk 0:02:56.5]} 15. Bh6 {[%clk
0:02:21.7]} 15... Rfe8 {[%clk 0:02:54]} 16. Bxg7 {[%clk 0:02:21.1]} 16... Kxg7
{[%clk 0:02:54.9]} 17. b3 {[%clk 0:02:19.1]} 17... a4 {[%clk 0:02:53.6]} 18. b4
{[%clk 0:02:15.4]} 18... b5 {[%clk 0:02:51.1]} 19. Be4 {[%clk 0:02:11.5]} 19...
Nd5 {[%clk 0:02:49.5]} 20. a3 {[%clk 0:02:01.7]} 20... Nb6 {[%clk 0:02:47.3]}
21. Bd3 {[%clk 0:02:00.2]} 21... Bd5 {[%clk 0:02:46.2]} 22. Nh2 {[%clk
0:01:55.7]} 22... h5 {[%clk 0:02:44.1]} 23. Nf1 {[%clk 0:01:55]} 23... Rxe1
{[%clk 0:02:41.7]} 24. Rxe1 {[%clk 0:01:54]} 24... Re8 {[%clk 0:02:42.6]} 25.
Ne3 {[%clk 0:01:52.6]} 25... Bb3 {[%clk 0:02:39.9]} 26. Bc2 {[%clk 0:01:38.1]}
26... Bxc2 {[%clk 0:02:35.8]} 27. Nxc2 {[%clk 0:01:37.8]} 27... Nc4 {[%clk
0:02:34.6]} 28. Qc1 {[%clk 0:01:34.2]} 28... Rxe1+ {[%clk 0:02:33.4]} 29. Qxe1
{[%clk 0:01:34.2]} 29... Qf5 {[%clk 0:02:31.3]} 30. Qe2 {[%clk 0:01:34.2]} 30...
Nb6 {[%clk 0:02:13]} 31. Qd2 {[%clk 0:01:27.4]} 31... Qe4 {[%clk 0:02:07.9]} 32.
Kh2 {[%clk 0:01:26.7]} 32... Nc4 {[%clk 0:02:06.4]} 33. Qd1 {[%clk 0:01:25.3]}
33... Nb6 {[%clk 0:01:50.6]} 34. Ne3 {[%clk 0:01:22.7]} 34... Qe6 {[%clk
0:01:38.8]} 35. Qc2 {[%clk 0:01:16.7]} 35... Qb3 {[%clk 0:01:36.4]} 36. Qc1
{[%clk 0:01:14.6]} 36... Qa2 {[%clk 0:01:27.7]} 37. Kg1 {[%clk 0:01:13.3]} 37...
Nc8 {[%clk 0:01:27.2]} 38. c4 {[%clk 0:01:09.5]} 38... Nd6 {[%clk 0:01:25.1]}
39. cxb5 {[%clk 0:01:08.5]} 39... Nxb5 {[%clk 0:01:24.7]} 40. Nc2 {[%clk
0:01:04.7]} 40... Nc3 {[%clk 0:01:17.3]} 41. Kh2 {[%clk 0:00:58.8]} 41... Ne4
{[%clk 0:01:09.6]} 42. f3 {[%clk 0:00:56.9]} 42... Nc3 {[%clk 0:01:05.6]} 43. h4
{[%clk 0:00:57.1]} 43... Nb5 {[%clk 0:01:02]} 44. Kg3 {[%clk 0:00:55.4]} 44...
Qc4 {[%clk 0:00:59.7]} 45. Qd2 {[%clk 0:00:52.4]} 45... Nc3 {[%clk 0:00:55.4]}
46. Kf2 {[%clk 0:00:49.9]} 46... Nb1 {[%clk 0:00:43.4]} 47. Qc1 {[%clk
0:00:44.9]} 47... Nxa3 {[%clk 0:00:40.9]} 48. Qxa3 {[%clk 0:00:43.2]} 48...
Qxc2+ {[%clk 0:00:41.1]} 49. Ke3 {[%clk 0:00:41.5]} 49... g5 {[%clk 0:00:37.6]}
50. hxg5 {[%clk 0:00:40.9]} 50... fxg5 {[%clk 0:00:38.5]} 51. d5 {[%clk
0:00:39.3]} 51... cxd5 {[%clk 0:00:27.2]} 52. b5 {[%clk 0:00:39.4]} 52... Kg6
{[%clk 0:00:07.1]} 53. b6 {[%clk 0:00:39.4]} 53... Qb1 {[%clk 0:00:06.6]} 54.
Qd6+ {[%clk 0:00:38.6]} 54... f6 {[%clk 0:00:06.6]} 55. Qc7 {[%clk 0:00:24.3]}
55... a3 {[%clk 0:00:04.2]} 56. b7 {[%clk 0:00:24]} 56... a2 {[%clk 0:00:03.6]}
57. b8=Q {[%clk 0:00:23.1]} 57... Qxb8 {[%clk 0:00:03.6]} 58. Qxb8 {[%clk
0:00:23.3]} 58... a1=Q {[%clk 0:00:03.6]} 59. Qg8+ {[%clk 0:00:23.2]} 59... Kh6
{[%clk 0:00:03.1]} 60. Qh8+ {[%clk 0:00:23.2]} 60... Kg6 {[%clk 0:00:03.3]} 61.
Qg8+ {[%clk 0:00:23.6]} 61... Kf5 {[%clk 0:00:02.5]} 62. Qxd5+ {[%clk
0:00:23.4]} 62... Qe5+ {[%clk 0:00:02.7]} 63. Qxe5+ {[%clk 0:00:15.7]} 63...
Kxe5 {[%clk 0:00:03.6]} 64. g3 {[%clk 0:00:15.4]} 64... Kd5 {[%clk 0:00:03.3]}
65. Kd3 {[%clk 0:00:14.5]} 65... f5 {[%clk 0:00:03.7]} 66. Ke3 {[%clk
0:00:14.6]} 66... Kc4 {[%clk 0:00:03.6]} 67. Ke2 {[%clk 0:00:04.9]} 67... f4
{[%clk 0:00:03.8]} 68. gxf4 {[%clk 0:00:01.3]} 68... gxf4 {[%clk 0:00:04.7]} 69.
Kf2 {[%clk 0:00:00.9]} 69... Kd3 {[%clk 0:00:05.3]} 70. Kg2 {[%clk 0:00:00.2]}
70... Ke3 {[%clk 0:00:05.6]} 0-1

[Event "Early-Titled-Tuesday-Blitz-May-07-2024"]
[Site "Chess.com"]
[Date "2024.05.07"]
[Round "2"]
[White "DanielNaroditsky"]
[Black "LeninGuerra"]
[Result "1-0"]
[WhiteElo "3073"]
[BlackElo "2647"]
[TimeControl "180+1"]
[EndTime "8:21:27 PDT"]
[Termination "DanielNaroditsky won by resignation"]

1. e4 {[%clk 0:03:00.9]} 1... c5 {[%clk 0:03:00]} 2. c3 {[%clk 0:02:49.9]} 2...
e6 {[%clk 0:02:56.6]} 3. Nf3 {[%clk 0:02:49]} 3... Nc6 {[%clk 0:02:56.3]} 4. d4
{[%clk 0:02:49.3]} 4... cxd4 {[%clk 0:02:57.2]} 5. cxd4 {[%clk 0:02:49.4]} 5...
d5 {[%clk 0:02:57.9]} 6. e5 {[%clk 0:02:49.5]} 6... Nge7 {[%clk 0:02:58]} 7. Na3
{[%clk 0:02:40.6]} 7... a6 {[%clk 0:02:54.5]} 8. Nc2 {[%clk 0:02:39.6]} 8... Nf5
{[%clk 0:02:54.8]} 9. Bd3 {[%clk 0:02:39.9]} 9... Nb4 {[%clk 0:02:53.2]} 10.
Nxb4 {[%clk 0:02:39.3]} 10... Bxb4+ {[%clk 0:02:53]} 11. Bd2 {[%clk 0:02:39.8]}
11... Be7 {[%clk 0:02:50.4]} 12. O-O {[%clk 0:02:38.2]} 12... O-O {[%clk
0:02:50]} 13. Qb3 {[%clk 0:02:35.9]} 13... b5 {[%clk 0:02:43]} 14. a4 {[%clk
0:02:34.5]} 14... b4 {[%clk 0:02:18.8]} 15. a5 {[%clk 0:02:31.8]} 15... Rb8
{[%clk 0:02:18.8]} 16. Rfc1 {[%clk 0:02:31.4]} 16... Bd7 {[%clk 0:01:58.8]} 17.
Bxa6 {[%clk 0:02:02]} 17... Ra8 {[%clk 0:01:58.5]} 18. Bd3 {[%clk 0:02:01.1]}
18... Rxa5 {[%clk 0:01:58.7]} 19. h3 {[%clk 0:01:52]} 19... Rxa1 {[%clk
0:01:37.7]} 20. Rxa1 {[%clk 0:01:52.9]} 20... Qb6 {[%clk 0:01:37.5]} 21. Bxf5
{[%clk 0:01:39.4]} 21... exf5 {[%clk 0:01:38.4]} 22. Qxd5 {[%clk 0:01:31.3]}
22... Bc6 {[%clk 0:01:38.4]} 23. Qa5 {[%clk 0:01:26.4]} 23... Qb7 {[%clk
0:01:38.5]} 24. Ne1 {[%clk 0:01:14.6]} 24... Rd8 {[%clk 0:01:28.9]} 25. Be3
{[%clk 0:01:11.3]} 25... g5 {[%clk 0:01:23.5]} 26. f3 {[%clk 0:01:07.6]} 26...
f4 {[%clk 0:01:14.3]} 27. Bf2 {[%clk 0:01:08]} 27... h5 {[%clk 0:00:50.2]} 28.
Qa7 {[%clk 0:01:00.7]} 28... Kf8 {[%clk 0:00:50.2]} 29. Qxb7 {[%clk 0:01:00]}
29... Bxb7 {[%clk 0:00:51.1]} 30. Nd3 {[%clk 0:00:57.5]} 30... Rc8 {[%clk
0:00:44.8]} 31. Rc1 {[%clk 0:00:44.1]} 31... Rxc1+ {[%clk 0:00:43.9]} 32. Nxc1
{[%clk 0:00:45]} 32... Bd5 {[%clk 0:00:44.1]} 33. Nd3 {[%clk 0:00:42.4]} 33...
Bc4 {[%clk 0:00:41.6]} 34. Nc1 {[%clk 0:00:36.3]} 34... Ke8 {[%clk 0:00:41.6]}
35. b3 {[%clk 0:00:35.3]} 35... Bd5 {[%clk 0:00:41.2]} 36. Be1 {[%clk
0:00:35.4]} 36... Kd7 {[%clk 0:00:39.5]} 37. Nd3 {[%clk 0:00:31.4]} 37... Bxb3
{[%clk 0:00:39.3]} 38. Bxb4 {[%clk 0:00:32]} 38... Bxb4 {[%clk 0:00:22.6]} 39.
Nxb4 {[%clk 0:00:32.9]} 39... Ke6 {[%clk 0:00:23.1]} 40. Kf2 {[%clk 0:00:31.3]}
40... f6 {[%clk 0:00:21.8]} 41. exf6 {[%clk 0:00:30.4]} 41... Kxf6 {[%clk
0:00:21.8]} 42. Nd3 {[%clk 0:00:23]} 42... Bc4 {[%clk 0:00:21.5]} 43. Nc5 {[%clk
0:00:18]} 43... Kf5 {[%clk 0:00:20.2]} 44. Ne4 {[%clk 0:00:17.7]} 44... Bd3
{[%clk 0:00:17.4]} 45. d5 {[%clk 0:00:14.6]} 45... Ke5 {[%clk 0:00:15.5]} 46. d6
{[%clk 0:00:12.7]} 46... Bb5 {[%clk 0:00:15.5]} 47. Nxg5 {[%clk 0:00:10.9]}
47... Kxd6 {[%clk 0:00:15.3]} 48. Ne4+ {[%clk 0:00:09.6]} 48... Ke5 {[%clk
0:00:15.4]} 49. Nc3 {[%clk 0:00:09.6]} 49... Bd3 {[%clk 0:00:15.4]} 50. h4
{[%clk 0:00:07.6]} 50... Bc4 {[%clk 0:00:15.6]} 51. Ne2 {[%clk 0:00:07.9]} 51...
Bd3 {[%clk 0:00:14.7]} 52. Ng1 {[%clk 0:00:06.8]} 52... Bc4 {[%clk 0:00:14.6]}
53. g3 {[%clk 0:00:07.2]} 53... fxg3+ {[%clk 0:00:14.4]} 54. Kxg3 {[%clk
0:00:08.1]} 54... Kf5 {[%clk 0:00:14.9]} 55. Nh3 {[%clk 0:00:08.6]} 55... Bf7
{[%clk 0:00:14.5]} 56. Ng5 {[%clk 0:00:07.9]} 56... Be8 {[%clk 0:00:14.6]} 57.
Ne4 {[%clk 0:00:08.1]} 57... Bg6 {[%clk 0:00:15]} 58. Nd6+ {[%clk 0:00:07.9]}
58... Ke5 {[%clk 0:00:15.5]} 59. Nc4+ {[%clk 0:00:07.8]} 59... Kf5 {[%clk
0:00:16]} 60. Ne3+ {[%clk 0:00:08.2]} 60... Ke5 {[%clk 0:00:16.5]} 61. Ng2
{[%clk 0:00:08.4]} 61... Kf5 {[%clk 0:00:15.7]} 62. Nf4 {[%clk 0:00:08.6]} 62...
Be8 {[%clk 0:00:15.9]} 63. Nd5 {[%clk 0:00:08.2]} 63... Bf7 {[%clk 0:00:15.7]}
64. Ne3+ {[%clk 0:00:08.3]} 64... Ke5 {[%clk 0:00:16.2]} 65. f4+ {[%clk
0:00:06.7]} 65... Ke4 {[%clk 0:00:16.4]} 66. Nf1 {[%clk 0:00:07.4]} 66... Be6
{[%clk 0:00:16.1]} 67. Nd2+ {[%clk 0:00:07.7]} 67... Ke3 {[%clk 0:00:14.5]} 68.
Nf3 {[%clk 0:00:08.6]} 68... Bg4 {[%clk 0:00:14.2]} 69. Ne5 {[%clk 0:00:07.6]}
69... Bf5 {[%clk 0:00:14.1]} 70. Nf7 {[%clk 0:00:08.2]} 70... Bg4 {[%clk
0:00:12.8]} 71. Nh6 {[%clk 0:00:07.1]} 71... Be6 {[%clk 0:00:12.2]} 72. f5
{[%clk 0:00:07.7]} 72... Bd5 {[%clk 0:00:09.9]} 73. f6 {[%clk 0:00:08.2]} 73...
Ke4 {[%clk 0:00:09.8]} 74. f7 {[%clk 0:00:08.8]} 74... Bxf7 {[%clk 0:00:10.4]}
75. Nxf7 {[%clk 0:00:09.7]} 75... Kf5 {[%clk 0:00:10.8]} 76. Ng5 {[%clk
0:00:10.5]} 76... Kf6 {[%clk 0:00:11.1]} 77. Kf4 {[%clk 0:00:11]} 77... Kg6
{[%clk 0:00:12]} 78. Ke5 {[%clk 0:00:11.4]} 78... Kh6 {[%clk 0:00:12.3]} 79. Nf3
{[%clk 0:00:11.2]} 79... Kg6 {[%clk 0:00:13.2]} 80. Ke6 {[%clk 0:00:11.7]} 80...
Kh6 {[%clk 0:00:13.7]} 81. Kf6 {[%clk 0:00:12.5]} 81... Kh7 {[%clk 0:00:14.2]}
82. Kg5 {[%clk 0:00:13.4]} 82... Kg7 {[%clk 0:00:14.2]} 83. Kxh5 {[%clk
0:00:14.3]} 83... Kh7 {[%clk 0:00:15.1]} 84. Kg5 {[%clk 0:00:15]} 84... Kg7
{[%clk 0:00:16]} 85. h5 {[%clk 0:00:15.9]} 85... Kh7 {[%clk 0:00:16.7]} 86. h6
{[%clk 0:00:16.8]} 86... Kg8 {[%clk 0:00:16.8]} 87. Kg6 {[%clk 0:00:17.7]} 87...
Kh8 {[%clk 0:00:17.6]} 88. Ng5 {[%clk 0:00:18.6]} 88... Kg8 {[%clk 0:00:18.2]}
89. Nf7 {[%clk 0:00:19.3]} 89... Kf8 {[%clk 0:00:18.3]} 90. h7 {[%clk
0:00:20.2]} 1-0

[Event "Early-Titled-Tuesday-Blitz-May-07-2024"]
[Site "Chess.com"]
[Date "2024.05.07"]
[Round "2"]
[White "Supergiuly"]
[Black "noblerone"]
[Result "1-0"]
[WhiteElo "2357"]
[BlackElo "2519"]
[TimeControl "180+1"]
[EndTime "8:21:30 PDT"]
[Termination "Supergiuly won by checkmate"]

1. f4 {[%clk 0:03:00.9]} 1... c5 {[%clk 0:02:58.5]} 2. Nf3 {[%clk 0:02:59.6]}
2... Nc6 {[%clk 0:02:58.6]} 3. g3 {[%clk 0:02:57.1]} 3... g6 {[%clk 0:02:58.1]}
4. Bg2 {[%clk 0:02:57.4]} 4... Bg7 {[%clk 0:02:58.7]} 5. O-O {[%clk 0:02:57.3]}
5... Nf6 {[%clk 0:02:58.2]} 6. d3 {[%clk 0:02:57.4]} 6... d5 {[%clk 0:02:58]} 7.
Qe1 {[%clk 0:02:57.5]} 7... d4 {[%clk 0:02:50.1]} 8. e4 {[%clk 0:02:55.3]} 8...
dxe3 {[%clk 0:02:50]} 9. Bxe3 {[%clk 0:02:53.3]} 9... Qd6 {[%clk 0:02:42.6]} 10.
Nc3 {[%clk 0:02:48.8]} 10... Nd4 {[%clk 0:02:03.2]} 11. Nxd4 {[%clk 0:02:41.5]}
11... cxd4 {[%clk 0:01:57.1]} 12. Nb5 {[%clk 0:02:40.2]} 12... Qd7 {[%clk
0:01:55.8]} 13. Nxd4 {[%clk 0:02:38.6]} 13... O-O {[%clk 0:01:56.1]} 14. Nf3
{[%clk 0:02:35.3]} 14... Qb5 {[%clk 0:01:53.8]} 15. Bd4 {[%clk 0:02:18.2]} 15...
Ng4 {[%clk 0:01:47.4]} 16. Bxg7 {[%clk 0:02:14.8]} 16... Kxg7 {[%clk 0:01:48.3]}
17. h3 {[%clk 0:02:14.4]} 17... Qb6+ {[%clk 0:01:39.7]} 18. d4 {[%clk
0:02:05.4]} 18... Nf6 {[%clk 0:01:26.1]} 19. Qc3 {[%clk 0:02:05.1]} 19... Bf5
{[%clk 0:01:23.3]} 20. Nh4 {[%clk 0:01:59.5]} 20... Be4 {[%clk 0:01:16.4]} 21.
Bxe4 {[%clk 0:01:55.8]} 21... Nxe4 {[%clk 0:01:17.2]} 22. Qe3 {[%clk 0:01:55]}
22... f5 {[%clk 0:01:10.6]} 23. b3 {[%clk 0:01:49.5]} 23... Rfd8 {[%clk
0:01:07.2]} 24. Rad1 {[%clk 0:01:48]} 24... Rac8 {[%clk 0:01:02.8]} 25. c4
{[%clk 0:01:46.8]} 25... Qa5 {[%clk 0:01:02.9]} 26. g4 {[%clk 0:01:37.9]} 26...
e6 {[%clk 0:01:01.3]} 27. gxf5 {[%clk 0:01:35.7]} 27... exf5 {[%clk 0:01:00.7]}
28. a4 {[%clk 0:01:17.9]} 28... a6 {[%clk 0:00:57.2]} 29. d5 {[%clk 0:01:15.2]}
29... Qc5 {[%clk 0:00:43]} 30. Qxc5 {[%clk 0:01:11]} 30... Rxc5 {[%clk
0:00:41.4]} 31. Nf3 {[%clk 0:01:11.3]} 31... b5 {[%clk 0:00:40.9]} 32. axb5
{[%clk 0:01:04.9]} 32... axb5 {[%clk 0:00:40.1]} 33. Ne5 {[%clk 0:01:04.8]}
33... bxc4 {[%clk 0:00:25.8]} 34. bxc4 {[%clk 0:01:05.7]} 34... Nd6 {[%clk
0:00:20.9]} 35. Rd4 {[%clk 0:00:42.7]} 35... Ra8 {[%clk 0:00:18.2]} 36. Rb1
{[%clk 0:00:38]} 36... Ra2 {[%clk 0:00:14.1]} 37. Rb6 {[%clk 0:00:32.5]} 37...
Ra1+ {[%clk 0:00:13.6]} 38. Kg2 {[%clk 0:00:30.9]} 38... Ra2+ {[%clk 0:00:13.7]}
39. Kf3 {[%clk 0:00:28.8]} 39... Ra3+ {[%clk 0:00:13.9]} 40. Ke2 {[%clk
0:00:28.2]} 40... Ne4 {[%clk 0:00:13.5]} 41. Rb7+ {[%clk 0:00:25.1]} 41... Kg8
{[%clk 0:00:13.6]} 42. Nd7 {[%clk 0:00:23.8]} 42... Ra2+ {[%clk 0:00:10.6]} 43.
Kd3 {[%clk 0:00:22.6]} 43... Rca5 {[%clk 0:00:08.5]} 44. Rxe4 {[%clk 0:00:18.2]}
44... fxe4+ {[%clk 0:00:07.6]} 45. Kxe4 {[%clk 0:00:19.1]} 45... Re2+ {[%clk
0:00:06.7]} 46. Kd4 {[%clk 0:00:19.1]} 46... Ra1 {[%clk 0:00:06.6]} 47. Nf6+
{[%clk 0:00:14.6]} 47... Kf8 {[%clk 0:00:06.4]} 48. Nxh7+ {[%clk 0:00:14.9]}
48... Kg8 {[%clk 0:00:06.4]} 49. Nf6+ {[%clk 0:00:15.1]} 49... Kf8 {[%clk
0:00:07.3]} 50. Nh7+ {[%clk 0:00:14.6]} 50... Kg8 {[%clk 0:00:07.7]} 51. Ng5
{[%clk 0:00:14.7]} 51... Kf8 {[%clk 0:00:08.4]} 52. Ne6+ {[%clk 0:00:14.7]}
52... Kg8 {[%clk 0:00:07.9]} 53. Rb8+ {[%clk 0:00:13.5]} 53... Kf7 {[%clk
0:00:06.3]} 54. Rf8+ {[%clk 0:00:13.4]} 54... Ke7 {[%clk 0:00:06.8]} 55. Rh8
{[%clk 0:00:11.8]} 55... Rd1+ {[%clk 0:00:06.3]} 56. Kc5 {[%clk 0:00:12.1]}
56... Kf6 {[%clk 0:00:06.3]} 57. Nd4 {[%clk 0:00:11.1]} 57... Red2 {[%clk
0:00:05.6]} 58. Nc6 {[%clk 0:00:11.1]} 58... Kg7 {[%clk 0:00:05.9]} 59. Rd8
{[%clk 0:00:11]} 59... Rc1 {[%clk 0:00:06]} 60. d6 {[%clk 0:00:11.1]} 60... Rdc2
{[%clk 0:00:06.1]} 61. Ne5 {[%clk 0:00:11.1]} 61... Rd2 {[%clk 0:00:06.3]} 62.
d7 {[%clk 0:00:10.9]} 62... Kf6 {[%clk 0:00:04.5]} 63. Rf8+ {[%clk 0:00:10.8]}
63... Ke7 {[%clk 0:00:04.9]} 64. Rf7+ {[%clk 0:00:10.8]} 64... Ke6 {[%clk
0:00:05.2]} 65. Rf8 {[%clk 0:00:10]} 65... Rxc4+ {[%clk 0:00:03.1]} 66. Kxc4
{[%clk 0:00:07.1]} 66... Rc2+ {[%clk 0:00:02.2]} 67. Kd3 {[%clk 0:00:06.7]}
67... g5 {[%clk 0:00:02.5]} 68. d8=Q {[%clk 0:00:06.6]} 68... Rd2+ {[%clk
0:00:02]} 69. Kxd2 {[%clk 0:00:05.4]} 69... gxf4 {[%clk 0:00:02.9]} 70. Qf6+
{[%clk 0:00:05.4]} 70... Kd5 {[%clk 0:00:03.3]} 71. Qxf4 {[%clk 0:00:04.7]}
71... Ke6 {[%clk 0:00:04.2]} 72. Qf6+ {[%clk 0:00:04.8]} 72... Kd5 {[%clk
0:00:05.1]} 73. Rd8+ {[%clk 0:00:04]} 73... Ke4 {[%clk 0:00:06]} 74. Qh4+ {[%clk
0:00:03.4]} 74... Kxe5 {[%clk 0:00:06.9]} 75. Qg5+ {[%clk 0:00:03.5]} 75... Ke6
{[%clk 0:00:07.3]} 76. Rf8 {[%clk 0:00:04]} 76... Kd6 {[%clk 0:00:06.8]} 77.
Rf6+ {[%clk 0:00:04.8]} 77... Kd7 {[%clk 0:00:07.7]} 78. Qg7+ {[%clk 0:00:05.4]}
78... Ke8 {[%clk 0:00:08.6]} 79. Rf8# {[%clk 0:00:05.8]} 1-0

[Event "Early-Titled-Tuesday-Blitz-May-07-2024"]
[Site "Chess.com"]
[Date "2024.05.07"]
[Round "2"]
[White "LyonBeast"]
[Black "Hasangatin_Ramil"]
[Result "1-0"]
[WhiteElo "3130"]
[BlackElo "2661"]
[TimeControl "180+1"]
[EndTime "8:21:35 PDT"]
[Termination "LyonBeast won on time"]

1. e4 {[%clk 0:03:00.9]} 1... d5 {[%clk 0:02:57]} 2. exd5 {[%clk 0:02:59.5]}
2... Qxd5 {[%clk 0:02:57.9]} 3. Nc3 {[%clk 0:02:59.7]} 3... Qd6 {[%clk
0:02:58.5]} 4. d4 {[%clk 0:02:58.6]} 4... Nf6 {[%clk 0:02:58.9]} 5. Nf3 {[%clk
0:02:57.9]} 5... c6 {[%clk 0:02:59.3]} 6. g3 {[%clk 0:02:58.1]} 6... Bg4 {[%clk
0:02:58.8]} 7. Bg2 {[%clk 0:02:58.1]} 7... e6 {[%clk 0:02:59.1]} 8. O-O {[%clk
0:02:57.5]} 8... Be7 {[%clk 0:02:59.2]} 9. h3 {[%clk 0:02:52.8]} 9... Bxf3
{[%clk 0:02:59.4]} 10. Bxf3 {[%clk 0:02:52.5]} 10... O-O {[%clk 0:02:59.9]} 11.
Ne2 {[%clk 0:02:51.5]} 11... Nbd7 {[%clk 0:02:52.5]} 12. c3 {[%clk 0:02:51.5]}
12... Qc7 {[%clk 0:02:52.1]} 13. Qc2 {[%clk 0:02:49.4]} 13... Rfe8 {[%clk
0:02:50.7]} 14. Rd1 {[%clk 0:02:48.1]} 14... Rad8 {[%clk 0:02:50.8]} 15. Be3
{[%clk 0:02:36.2]} 15... Bd6 {[%clk 0:02:47.6]} 16. c4 {[%clk 0:02:32.4]} 16...
e5 {[%clk 0:02:46.5]} 17. dxe5 {[%clk 0:02:21.6]} 17... Bxe5 {[%clk 0:02:19.3]}
18. Bg2 {[%clk 0:01:41]} 18... Nf8 {[%clk 0:01:59]} 19. Nf4 {[%clk 0:01:28.4]}
19... Ng6 {[%clk 0:01:53.6]} 20. Nxg6 {[%clk 0:01:23.6]} 20... hxg6 {[%clk
0:01:53.8]} 21. Qb3 {[%clk 0:01:22.5]} 21... b6 {[%clk 0:01:46.8]} 22. Rxd8
{[%clk 0:01:13.5]} 22... Rxd8 {[%clk 0:01:45.8]} 23. Re1 {[%clk 0:01:14.1]}
23... c5 {[%clk 0:01:40.8]} 24. Qc2 {[%clk 0:01:12.3]} 24... Bd4 {[%clk
0:01:35.7]} 25. Bf4 {[%clk 0:01:11.7]} 25... Qd7 {[%clk 0:01:36]} 26. b3 {[%clk
0:01:07.9]} 26... Re8 {[%clk 0:01:35.8]} 27. Rxe8+ {[%clk 0:01:07.7]} 27... Qxe8
{[%clk 0:01:35.9]} 28. Kf1 {[%clk 0:01:08.3]} 28... Qe6 {[%clk 0:01:28.6]} 29.
g4 {[%clk 0:01:01.7]} 29... Be5 {[%clk 0:01:19.7]} 30. Bg5 {[%clk 0:01:02.1]}
30... Qd6 {[%clk 0:01:18.9]} 31. Qd2 {[%clk 0:01:01.9]} 31... Qxd2 {[%clk
0:00:52.6]} 32. Bxd2 {[%clk 0:01:02.8]} 32... Nh7 {[%clk 0:00:52.4]} 33. g5
{[%clk 0:01:03.1]} 33... Kf8 {[%clk 0:00:41.2]} 34. Ke2 {[%clk 0:00:57.2]} 34...
Ke7 {[%clk 0:00:41.4]} 35. Bd5 {[%clk 0:00:53.7]} 35... Nf8 {[%clk 0:00:40.7]}
36. h4 {[%clk 0:00:53.6]} 36... Ne6 {[%clk 0:00:40.2]} 37. Kf3 {[%clk
0:00:53.2]} 37... Kd6 {[%clk 0:00:38.2]} 38. Ke4 {[%clk 0:00:39.8]} 38... Bd4
{[%clk 0:00:34.5]} 39. Be1 {[%clk 0:00:28.7]} 39... Ke7 {[%clk 0:00:33]} 40. f4
{[%clk 0:00:28.8]} 40... Nc7 {[%clk 0:00:31.8]} 41. Bg3 {[%clk 0:00:25.4]} 41...
Nxd5 {[%clk 0:00:26.7]} 42. cxd5 {[%clk 0:00:19.3]} 42... Kd7 {[%clk 0:00:18.4]}
43. f5 {[%clk 0:00:19.3]} 43... gxf5+ {[%clk 0:00:17.9]} 44. Kxf5 {[%clk
0:00:20.2]} 44... g6+ {[%clk 0:00:18.4]} 45. Ke4 {[%clk 0:00:20.8]} 45... Bb2
{[%clk 0:00:15.7]} 46. Bb8 {[%clk 0:00:19.5]} 46... a6 {[%clk 0:00:15.2]} 47. a4
{[%clk 0:00:11.7]} 47... b5 {[%clk 0:00:15.2]} 48. axb5 {[%clk 0:00:10.7]} 48...
axb5 {[%clk 0:00:16.1]} 49. Bf4 {[%clk 0:00:10.3]} 49... c4 {[%clk 0:00:15.7]}
50. bxc4 {[%clk 0:00:10.6]} 50... bxc4 {[%clk 0:00:16.6]} 51. Be3 {[%clk
0:00:10.4]} 51... Kd6 {[%clk 0:00:14.6]} 52. Bf4+ {[%clk 0:00:10.6]} 52... Kc5
{[%clk 0:00:12.8]} 53. Be3+ {[%clk 0:00:08.8]} 53... Kd6 {[%clk 0:00:13.2]} 54.
Ba7 {[%clk 0:00:08.4]} 54... Bg7 {[%clk 0:00:09.2]} 55. Bb8+ {[%clk 0:00:07.5]}
55... Kd7 {[%clk 0:00:09.5]} 56. Bf4 {[%clk 0:00:08.1]} 56... Bb2 {[%clk
0:00:08.3]} 57. Bg3 {[%clk 0:00:07.7]} 57... Bg7 {[%clk 0:00:07.3]} 58. Ke3
{[%clk 0:00:07.9]} 58... Bc3 {[%clk 0:00:06.6]} 59. Ke4 {[%clk 0:00:07.1]} 59...
Bg7 {[%clk 0:00:05.6]} 60. Be1 {[%clk 0:00:06.9]} 60... Bb2 {[%clk 0:00:05.5]}
61. Bf2 {[%clk 0:00:06.6]} 61... Bg7 {[%clk 0:00:05.3]} 62. Bc5 {[%clk
0:00:06.3]} 62... Bb2 {[%clk 0:00:04.6]} 63. Ke3 {[%clk 0:00:06.3]} 63... Ba1
{[%clk 0:00:03.9]} 64. Bd4 {[%clk 0:00:05.7]} 64... c3 {[%clk 0:00:03.8]} 65.
Kd3 {[%clk 0:00:04]} 65... c2 {[%clk 0:00:02.8]} 66. Be3 {[%clk 0:00:04.7]}
66... Kd6 {[%clk 0:00:02.1]} 67. Kxc2 {[%clk 0:00:03.7]} 67... Kxd5 {[%clk
0:00:02.4]} 68. Kd3 {[%clk 0:00:04.6]} 68... Ke5 {[%clk 0:00:01.2]} 69. Ke2
{[%clk 0:00:04.6]} 69... Kf5 {[%clk 0:00:01.8]} 70. Kf3 {[%clk 0:00:05.2]} 70...
Be5 {[%clk 0:00:02.3]} 71. Bf2 {[%clk 0:00:05.5]} 71... Bc3 {[%clk 0:00:02.6]}
72. Bg3 {[%clk 0:00:05.9]} 1-0

[Event "Early-Titled-Tuesday-Blitz-May-07-2024"]
[Site "Chess.com"]
[Date "2024.05.07"]
[Round "3"]
[White "Grandelicious"]
[Black "Journey_to_GrandMaster_YT"]
[Result "1-0"]
[WhiteElo "2893"]
[BlackElo "2537"]
[TimeControl "180+1"]
[EndTime "8:26:48 PDT"]
[Termination "Grandelicious won by checkmate"]

1. c4 {[%clk 0:03:00.9]} 1... d6 {[%clk 0:03:00.9]} 2. Nc3 {[%clk 0:02:59.8]}
2... e5 {[%clk 0:03:01.5]} 3. e3 {[%clk 0:02:58.7]} 3... Nf6 {[%clk 0:03:02.2]}
4. d4 {[%clk 0:02:59.2]} 4... Nbd7 {[%clk 0:03:02.8]} 5. Bd3 {[%clk 0:02:57.2]}
5... Be7 {[%clk 0:03:03]} 6. Nge2 {[%clk 0:02:58]} 6... O-O {[%clk 0:03:03.6]}
7. O-O {[%clk 0:02:58.6]} 7... c6 {[%clk 0:03:04.2]} 8. b3 {[%clk 0:02:57.5]}
8... Re8 {[%clk 0:03:04]} 9. Bb2 {[%clk 0:02:57.9]} 9... Bf8 {[%clk 0:03:04.2]}
10. Ng3 {[%clk 0:02:58.2]} 10... a6 {[%clk 0:03:00.4]} 11. Qc2 {[%clk
0:02:57.9]} 11... b5 {[%clk 0:02:59.3]} 12. Rad1 {[%clk 0:02:56.9]} 12... Qc7
{[%clk 0:02:51.5]} 13. dxe5 {[%clk 0:02:56.5]} 13... dxe5 {[%clk 0:02:32.3]} 14.
Nce4 {[%clk 0:02:56.9]} 14... Nxe4 {[%clk 0:02:28.3]} 15. Nxe4 {[%clk
0:02:53.8]} 15... f5 {[%clk 0:02:16.1]} 16. Ng5 {[%clk 0:02:46.2]} 16... e4
{[%clk 0:02:15.7]} 17. cxb5 {[%clk 0:02:41.8]} 17... exd3 {[%clk 0:02:11.6]} 18.
Qc4+ {[%clk 0:02:40.7]} 18... Kh8 {[%clk 0:02:03.4]} 19. Nf7+ {[%clk 0:02:40.9]}
19... Kg8 {[%clk 0:02:03.8]} 20. Nh6+ {[%clk 0:02:41.6]} 20... Kh8 {[%clk
0:02:04.4]} 21. Qg8# {[%clk 0:02:42.3]} 1-0